[Event "Budapest Chess Festival 2024"]
[Site "Budapest"]
[Date "2024.05.25"]
[Round "3.10"]
[White "Parkhov, Yair"]
[Black "Tadic, Stefan"]
[Result "1/2-1/2"]
[ECO "C80"]
[WhiteElo "2510"]
[BlackElo "2399"]
[Annotator "TA"]
[PlyCount "80"]
[EventDate "2024.05.20"]
[EventType "swiss"]
[EventCountry "HUN"]
[SourceTitle "playchess.com"]
[Source "ChessBase"]
[SourceQuality "1"]
[TimeControl "40/5400+30:1800+30"]

{[%evp 22,80,19,26,20,11,18,22,106,63,60,22,47,22,28,11,28,20,31,31,42,27,34,21,20,10,61,59,85,86,124,0,0,0,0,0,0,0,0,0,0,0,0,0,8,8,0,8,0,0,0,0,0,0,0,0,0,0,0,0,0]} 1. e4 {[%emt 0:00:32]} e5 {[%emt 0:00:40]} 2. Nf3 {[%emt 0:00:03]} Nc6 {[%emt 0:00:06]} 3. Bb5 {[%emt 0:00:04]} a6 {[%emt 0:00:04]} 4. Ba4 {[%emt 0:00:02]} Nf6 {[%emt 0:00:06]} 5. O-O {[%emt 0:00:05]} Nxe4 {[%emt 0:00:04]} 6. d4 {[%emt 0:00:05]} b5 {[%emt 0:00:04]} 7. Bb3 {[%emt 0:00:05]} d5 {[%emt 0:00:06]} 8. dxe5 {[%emt 0:00:10]} Be6 {[%emt 0:00:05]} 9. Be3 {[%emt 0:03:48]} Bc5 {[%emt 0:05:08]} 10. Qe2 {[%emt 0:09:07]} Qe7 {[%emt 0:15:19]} 11. Nbd2 {[%emt 0:09:16]} Bxe3 {[%emt 0:02:49]} 12. Qxe3 {[%emt 0:00:41]} Nxd2 {[%emt 0:00:13]} 13. Nxd2 {[%emt 0:06:20]} O-O {[%emt 0:05:55]} 14. f4 {[%emt 0:06:18] f5 is the strong threat.} f5 {[%emt 0:05:03]} (14... Rad8 $11 {remains equal.}) 15. c3 {[%emt 0:07:57]} Na5 {[%emt 0:02:15]} 16. Bc2 {[%emt 0:05:47]} c5 {[%emt 0:00:59]} 17. Nb3 {[%emt 0:00:44]} Nxb3 {[%emt 0:02:24]} 18. axb3 {[%emt 0:00:53]} Rfd8 {[%emt 0:04:09]} 19. Rfd1 {[%emt 0:02:09]} g6 {[%emt 0:02:45]} 20. Rd2 {[%emt 0:00:50]} Qc7 {[%emt 0:05:14][%cal Od5d4]} 21. Bd1 {[%emt 0:06:55]} a5 {[%emt 0:08:40]} 22. Bf3 {[%emt 0:01:14]} Rac8 {[%emt 0:02:38]} 23. h3 {[%emt 0:07:01]} b4 {[%emt 0:03:14]} (23... Qb6 $11) 24. Rad1 $14 {[%emt 0:05:03]} Qf7 {[%emt 0:02:23]} 25. Kh2 {[%emt 0:00:44]} Kg7 {[%emt 0:07:28]} 26. g4 {[%emt 0:02:00]} (26. Qf2 $16) 26... bxc3 $11 {[%emt 0:02:48] The position is equal.} 27. bxc3 {[%emt 0:00:15]} c4 {[%emt 0:03:34]} 28. bxc4 {[%emt 0:03:09]} Rxc4 {[%emt 0:00:09]} 29. Rd4 {[%emt 0:02:13] [#] Threatens to win with Rxc4.} Rdc8 {[%emt 0:03:33]} 30. Bxd5 {[%emt 0:12:35]} Rxc3 {[%emt 0:03:14]} 31. Bxe6 {[%emt 0:00:20][%cal Od4d7] White threatens Rd7! and mate.} Rxe3 {[%emt 0:00:04]} 32. Bxf7 {[%emt 0:00:12]} Rc2+ {[%emt 0:00:03]} 33. R1d2 {[%emt 0:00:25]} Rxd2+ {[%emt 0:00:11]} 34. Rxd2 {[%emt 0:00:06]} Kxf7 {[%emt 0:00:07]} 35. gxf5 {[%emt 0:04:15]} gxf5 {[%emt 0:00:04] KR-KR} 36. Rd7+ {[%emt 0:00:22]} Kg6 {[%emt 0:04:33]} 37. Rd6+ {[%emt 0:01:14]} Kg7 {[%emt 0:00:55]} 38. Rd4 {[%emt 0:01:38]} Kf7 {[%emt 0:04:23]} 39. h4 {[%emt 0:02:21]} Ke7 {[%emt 0:03:28]} 40. Rd5 {[%emt 0:00:00]} Rf3 {[%emt 0:00:00] Weighted Error Value: White=0.12 (very precise) /Black=0.13 (very precise) .  Mistake:       	White=1     	Black=2      Inaccurate:     	White=2     	Black=2      OK:         	White=6     	Black=11     Best:        	---       	Black=3} 1/2-1/2

[Event "Budapest Chess Festival 2024"]
[Site "Budapest"]
[Date "2024.05.25"]
[Round "3.11"]
[White "Pasti, Aron"]
[Black "Visakh N R"]
[Result "1/2-1/2"]
[ECO "C41"]
[WhiteElo "2400"]
[BlackElo "2511"]
[Annotator "TA"]
[PlyCount "39"]
[EventDate "2024.05.20"]
[EventType "swiss"]
[EventCountry "HUN"]
[SourceTitle "playchess.com"]
[Source "ChessBase"]
[SourceQuality "1"]
[TimeControl "40/5400+30:1800+30"]

{[%evp 14,39,30,18,41,25,34,27,25,25,24,0,33,35,27,22,30,29,29,31,20,18,9,19,11,5,4,8]} 1. e4 {[%emt 0:00:39]} d6 {[%emt 0:00:56]} 2. d4 {[%emt 0:00:07]} Nf6 {[%emt 0:00:06]} 3. Nc3 {[%emt 0:00:06]} e5 {[%emt 0:00:19]} 4. Nf3 {[%emt 0:00:11]} Nbd7 {[%emt 0:00:09]} 5. Bc4 {[%emt 0:01:26]} Be7 {[%emt 0:00:07]} 6. O-O {[%emt 0:00:47]} O-O {[%emt 0:00:25]} 7. Re1 {[%emt 0:00:15]} c6 {[%emt 0:00:22]} 8. a4 {[%emt 0:00:09]} exd4 {[%emt 0:00:16]} 9. Qxd4 {[%emt 0:03:42]} Ne5 {[%emt 0:07:34]} 10. Nxe5 {[%emt 0:09:42]} dxe5 {[%emt 0:00:27] White has an edge.} 11. Qxd8 {[%emt 0:01:36]} ({But not} 11. Qxe5 Ng4 12. Qf4 Bd6 $15) (11. Qe3 {feels hotter.} Ng4 12. Qf3 Bc5 13. Nd1) 11... Rxd8 {[%emt 0:00:02]} 12. a5 {[%emt 0:00:54]} Bb4 {[%emt 0:07:01]} 13. f3 {[%emt 0:02:24]} Ne8 {[%emt 0:24:04]} 14. Be3 {[%emt 0:07:09]} Nc7 {[%emt 0:06:16]} 15. Red1 {[%emt 0:06:30]} Rxd1+ {[%emt 0:02:26]} 16. Nxd1 {[%emt 0:01:18]} b5 {[%emt 0:06:28]} 17. axb6 {[%emt 0:02:45] The position is equal.} axb6 {[%emt 0:00:05]} 18. Rxa8 {[%emt 0:01:07]} Nxa8 {[%emt 0:00:02]} 19. c3 {[%emt 0:00:25]} Bd6 {[%emt 0:00:49]} 20. b4 {[%emt 0:00:33] Weighted Error Value: White=0.03 (flawless) /Black=0.06 (flawless) .  Inaccurate:     	---       	Black=1      OK:         	White=6     	Black=6} 1/2-1/2

[Event "Budapest Chess Festival 2024"]
[Site "Budapest"]
[Date "2024.05.25"]
[Round "3.12"]
[White "Vetoshko, Volodymyr"]
[Black "Mouhamad, Joachim"]
[Result "1-0"]
[ECO "D35"]
[WhiteElo "2505"]
[BlackElo "2312"]
[Annotator "RC"]
[PlyCount "133"]
[EventDate "2024.05.20"]
[EventType "swiss"]
[EventCountry "HUN"]
[SourceTitle "playchess.com"]
[Source "ChessBase"]
[SourceQuality "1"]
[TimeControl "40/5400+30:1800+30"]

1. d4 {[%emt 0:00:34]} d5 {[%emt 0:00:55]} 2. c4 {[%emt 0:00:08]} e6 {[%emt 0:00:07]} 3. Nc3 {[%emt 0:00:11]} Nf6 {[%emt 0:00:33]} 4. cxd5 {[%emt 0:00:52]} exd5 {[%emt 0:00:11]} 5. Bg5 {[%emt 0:00:14]} Be7 {[%emt 0:00:22]} 6. e3 {[%emt 0:00:35]} h6 {[%emt 0:00:22]} 7. Bh4 {[%emt 0:00:37]} Bg4 {[%emt 0:00:09]} 8. Qc2 {[%emt 0:01:05]} O-O {[%emt 0:00:22]} 9. h3 {[%emt 0:00:21]} Be6 {[%emt 0:00:09]} 10. Nf3 {[%emt 0:00:14]} Nbd7 {[%emt 0:00:54]} 11. Bd3 {[%emt 0:00:26]} c6 {[%emt 0:02:55]} 12. O-O {[%emt 0:01:24]} Ne8 {[%emt 0:17:16]} 13. Bg3 {[%emt 0:08:24]} Rc8 {[%emt 0:08:10]} 14. Rad1 {[%emt 0:04:02]} a6 {[%emt 0:14:25]} 15. Qb1 {[%emt 0:05:10]} Qa5 {[%emt 0:03:24]} 16. Ne2 {[%emt 0:07:02]} Ndf6 {[%emt 0:02:33]} 17. Nf4 {[%emt 0:17:44]} Bd7 {[%emt 0:00:12]} 18. Ne5 {[%emt 0:00:59]} Nd6 {[%emt 0:01:40]} 19. Nxd7 {[%emt 0:11:07]} Nxd7 {[%emt 0:00:03]} 20. f3 {[%emt 0:00:11]} Nc4 {[%emt 0:09:40]} 21. Bxc4 {[%emt 0:06:03]} dxc4 {[%emt 0:00:03]} 22. e4 {[%emt 0:06:46]} Nf6 23. Ne2 Rfe8 {[%emt 0:13:34]} 24. Kh1 {[%emt 0:03:10]} Rcd8 {[%emt 0:01:17]} 25. Be1 Bb4 {[%emt 0:01:59]} 26. Bh4 {[%emt 0:08:03]} Be7 {[%emt 0:01:15]} 27. Be1 {[%emt 0:02:31]} Bb4 28. Bxb4 {[%emt 0:01:48]} Qxb4 {[%emt 0:00:32]} 29. Ng3 {[%emt 0:02:18]} a5 {[%emt 0:11:38]} 30. Qc1 b5 {[%emt 0:01:06]} 31. Nf5 {[%emt 0:00:50]} Kh7 {[%emt 0:05:13]} 32. Rfe1 {[%emt 0:02:16]} Qf8 {[%emt 0:01:47]} 33. Qc3 {[%emt 0:06:38]} Qb4 {[%emt 0:00:35]} 34. Qc1 {[%emt 0:00:31]} Qf8 {[%emt 0:00:34]} 35. a3 {[%emt 0:00:44]} g6 {[%emt 0:00:36]} 36. Ne3 {[%emt 0:01:14]} a4 {[%emt 0:01:24]} 37. Qc3 Qg7 38. g4 {[%emt 0:02:20]} Rd7 {[%emt 0:01:02]} 39. Rd2 {[%emt 0:02:01]} Red8 {[%emt 0:01:49]} 40. Red1 {[%emt 0:00:00]} Kg8 {[%emt 0:00:00]} 41. d5 {[%emt 0:05:20]} cxd5 {[%emt 0:03:56]} 42. e5 {[%emt 0:03:05]} d4 {[%emt 0:13:48]} 43. Rxd4 {[%emt 0:00:35]} Rxd4 {[%emt 0:00:12]} 44. Rxd4 {[%emt 0:00:07]} Rxd4 {[%emt 0:02:27]} 45. Qxd4 {[%emt 0:00:07]} Nh7 {[%emt 0:04:50]} 46. Nd5 {[%emt 0:09:57]} Qf8 {[%emt 0:00:48]} 47. h4 {[%emt 0:00:33]} Qa8 {[%emt 0:02:55]} 48. Kg2 {[%emt 0:00:33]} Nf8 {[%emt 0:02:51]} 49. Ne7+ {[%emt 0:11:15]} Kh7 {[%emt 0:00:42]} 50. Qd5 {[%emt 0:01:55]} Qxd5 {[%emt 0:01:03]} 51. Nxd5 {[%emt 0:00:01]} Ne6 {[%emt 0:02:48]} 52. Nc3 {[%emt 0:00:49]} Nd4 {[%emt 0:00:53]} 53. Kf2 {[%emt 0:00:33]} g5 {[%emt 0:00:24]} 54. hxg5 {[%emt 0:00:27]} hxg5 55. Ke3 Nc2+ {[%emt 0:01:06]} 56. Ke4 {[%emt 0:00:29]} b4 {[%emt 0:00:18]} 57. axb4 {[%emt 0:00:48]} Nxb4 {[%emt 0:00:12]} 58. Nxa4 {[%emt 0:00:07]} Nd3 {[%emt 0:00:43]} 59. b3 {[%emt 0:01:35]} Nf2+ {[%emt 0:00:32]} 60. Ke3 {[%emt 0:00:09]} Nd3 {[%emt 0:00:20]} 61. Kd4 {[%emt 0:02:17]} Ne1 {[%emt 0:00:51]} 62. bxc4 {[%emt 0:00:24]} Nxf3+ {[%emt 0:00:02]} 63. Kd5 {[%emt 0:00:26]} Kg7 {[%emt 0:00:25]} 64. c5 {[%emt 0:00:10]} Kf8 {[%emt 0:00:41]} 65. c6 {[%emt 0:00:13]} Ke7 {[%emt 0:00:18]} 66. Nb6 {[%emt 0:00:33]} Kd8 {[%emt 0:00:11]} 67. Kd6 {[%emt 0:00:06]} 1-0

[Event "Budapest Chess Festival 2024"]
[Site "Budapest"]
[Date "2024.05.25"]
[Round "3.13"]
[White "Costa, Leonardo"]
[Black "Dolzhykova, Kateryna"]
[Result "1/2-1/2"]
[ECO "C07"]
[WhiteElo "2486"]
[BlackElo "2305"]
[Annotator "TA"]
[PlyCount "85"]
[EventDate "2024.05.20"]
[EventType "swiss"]
[EventCountry "HUN"]
[SourceTitle "playchess.com"]
[Source "ChessBase"]
[SourceQuality "1"]
[TimeControl "40/5400+30:1800+30"]

{[%evp 14,85,14,6,14,16,12,15,0,0,12,4,0,0,0,0,0,0,0,0,16,7,0,15,8,5,8,0,16,16,20,18,17,10,15,8,25,30,23,19,19,16,25,26,47,27,32,19,26,0,0,0,0,0,0,0,0,0,0,0,0,0,0,-37,0,0,0,0,0,0,0,0,0,0]} 1. e4 {[%emt 0:00:33]} e6 {[%emt 0:00:36]} 2. d4 {[%emt 0:00:05]} d5 {[%emt 0:00:06]} 3. Nd2 {[%emt 0:00:17]} c5 {[%emt 0:00:36]} 4. Ngf3 {[%emt 0:00:04]} cxd4 {[%emt 0:00:20]} 5. Nxd4 {[%emt 0:00:04]} Nc6 {[%emt 0:00:20]} 6. Bb5 {[%emt 0:00:05]} Bd7 {[%emt 0:00:04]} 7. Nxc6 {[%emt 0:00:04]} bxc6 {[%emt 0:00:03]} 8. Bd3 {[%emt 0:00:05]} Bd6 {[%emt 0:01:07]} 9. Qe2 {[%emt 0:00:04]} e5 {[%emt 0:00:32]} 10. c4 {[%emt 0:00:04]} d4 {[%emt 0:02:02]} 11. c5 {[%emt 0:00:04]} Bxc5 {[%emt 0:00:05]} 12. Nc4 {[%emt 0:00:03]} Bb4+ {[%emt 0:00:10]} 13. Bd2 {[%emt 0:00:04]} Qe7 {[%emt 0:01:09]} 14. O-O {[%emt 0:00:05] Strongly threatening Bxb4.} Bxd2 {[%emt 0:00:06]} 15. Qxd2 {[%emt 0:00:03]} Nh6 {[%emt 0:00:23][%cal Bg8h6,Bh6g4,Bg4e3][%mdl 32]} 16. f4 {[%emt 0:00:04]} Ng4 {[%emt 0:00:39]} 17. h3 {[%emt 0:00:05]} Ne3 {[%emt 0:00:09]} 18. Nxe3 {[%emt 0:00:04]} dxe3 {[%emt 0:00:04]} 19. Qxe3 {[%emt 0:00:04]} exf4 {[%emt 0:00:13]} 20. Rxf4 {[%emt 0:00:04]} Qe5 {[%emt 0:02:12]} 21. Bc4 {[%emt 0:21:50]} O-O {[%emt 0:02:07]} 22. Raf1 {[%emt 0:01:22]} Be6 {[%emt 0:03:22]} 23. Bxe6 {[%emt 0:00:42]} Qxe6 {[%emt 0:01:35]} 24. b3 {[%emt 0:00:04]} a5 {[%emt 0:00:59]} 25. e5 {[%emt 0:02:35]} Rae8 {[%emt 0:17:54]} 26. Qa7 {[%emt 0:19:09]} Qd5 {[%emt 0:10:52] [#]} 27. e6 $1 {[%emt 0:01:07][%cal Rf4f7]} Qxe6 {[%emt 0:10:55]} (27... f6 {is more complex.} 28. e7 Rf7 29. Re1 Qd2) 28. Qxa5 {[%emt 0:00:20]} Qe3+ {[%emt 0:10:04]} 29. Kh1 {[%emt 0:00:37]} f6 {[%emt 0:00:23]} 30. Qc7 {[%emt 0:03:53]} (30. Qb4 {simplifies} Qd3 31. Qc4+ Qxc4 32. Rxc4 Ra8 33. a4) 30... c5 {[%emt 0:07:08]} 31. a4 {[%emt 0:08:20]} Qxb3 {[%emt 0:07:35]} 32. Rg4 {[%emt 0:07:25]} Qf7 {[%emt 0:02:17]} 33. Qxc5 {[%emt 0:00:03]} Re5 {[%emt 0:01:05]} 34. Qc3 {[%emt 0:04:46]} h5 {[%emt 0:01:49]} 35. Rgf4 {[%emt 0:04:05] Threatens to win with Qxe5.} Rfe8 {[%emt 0:02:36]} 36. a5 {[%emt 0:06:58]} Qe6 {[%emt 0:02:52]} 37. Ra4 {[%emt 0:02:16]} Re3 {[%emt 0:00:40]} 38. Qc7 {[%emt 0:01:32] [#]} Rxh3+ $1 {[%emt 0:06:04]} 39. gxh3 {[%emt 0:00:10] The position is equal.} Qd5+ {[%emt 0:01:05]} 40. Kg1 {[%emt 0:00:00] aiming for Qc4.} Qg5+ {[%emt 0:00:00]} 41. Kh1 Qd5+ {[%emt 0:00:26]} 42. Kg1 {[%emt 0:06:54] Qc4 is the strong threat.} Qg5+ {[%emt 0:00:02]} 43. Kh1 {[%emt 0:00:07] Weighted Error Value: White=0.05 (flawless) /Black=0.04 (flawless) .  Inaccurate:     	White=2     	Black=1      OK:         	White=14    	Black=21     Best:        	White=3     	Black=2} 1/2-1/2

[Event "Budapest Chess Festival 2024"]
[Site "Budapest"]
[Date "2024.05.25"]
[Round "3.14"]
[White "Onyshchuk, Volodymyr"]
[Black "Cieslak, Patryk"]
[Result "1-0"]
[ECO "B92"]
[WhiteElo "2619"]
[BlackElo "2369"]
[Annotator "TA"]
[PlyCount "131"]
[EventDate "2024.05.20"]
[EventType "swiss"]
[EventCountry "HUN"]
[SourceTitle "playchess.com"]
[Source "ChessBase"]
[SourceQuality "1"]
[TimeControl "40/5400+30:1800+30"]

{[%evp 33,131,0,12,11,17,-17,6,-9,21,0,-16,-17,0,0,4,0,0,0,0,0,14,14,14,14,14,12,12,12,8,8,5,5,39,5,39,39,39,22,20,21,21,20,20,19,18,11,16,0,0,0,0,0,0,0,0,0,0,0,23,23,52,52,58,59,79,79,78,78,75,4,17,0,79,79,79,79,78,78,77,77,77,59,29971,29975,29975,29974,29975,29976,29976,29974,29972,0,29976,29977,29977,29978,29978,29979,29979,29980]} 1. e4 {[%emt 0:00:45]} c5 {[%emt 0:00:38]} 2. Nf3 {[%emt 0:00:32]} d6 {[%emt 0:00:08]} 3. d4 {[%emt 0:00:23]} cxd4 {[%emt 0:00:07]} 4. Nxd4 {[%emt 0:00:07]} Nf6 {[%emt 0:00:06]} 5. Nc3 {[%emt 0:00:06]} a6 {[%emt 0:00:07]} 6. Be2 {[%emt 0:00:52]} e5 {[%emt 0:00:06]} 7. Nb3 {[%emt 0:00:09]} Be7 {[%emt 0:00:10]} 8. Bg5 {[%emt 0:00:19]} Be6 {[%emt 0:00:25]} 9. Bxf6 {[%emt 0:00:11]} Bxf6 {[%emt 0:00:10]} 10. Qd3 {[%emt 0:00:12] B92: Sicilian Najdorf: 6 Be2.} Be7 {[%emt 0:00:21]} 11. Nd5 {[%emt 0:01:53]} Nd7 {[%emt 0:00:24] 11...Bxd5 is vanishing.} 12. O-O {[%emt 0:03:04]} Bxd5 {[%emt 0:09:20]} 13. Qxd5 {[%emt 0:01:09]} Qc7 {[%emt 0:02:52]} 14. c3 {[%emt 0:05:41]} O-O {[%emt 0:06:51]} 15. Nd2 {[%emt 0:07:57]} b5 {[%emt 0:07:59]} 16. Rfd1 {[%emt 0:01:57]} Rfd8 {[%emt 0:09:25]} 17. Qb3 $146 {[%emt 0:05:03]} ({Predecessor:} 17. Bf3 Bg5 18. Nf1 Nf6 19. Qd3 Rab8 20. g3 h5 21. h4 Bh6 22. Ne3 g6 23. Nd5 Nxd5 24. Qxd5 {1-0 Jurcik,M (2400)-Mrva,M (2379) SVK-ch Kezmarok 2022 (7)}) 17... Bg5 {[%emt 0:03:30]} 18. Nf3 {[%emt 0:10:24]} Be7 {[%emt 0:03:06]} 19. Ne1 {[%emt 0:04:47]} Rab8 {[%emt 0:04:13]} 20. Nd3 {[%emt 0:30:30]} Nc5 {[%emt 0:05:35]} 21. Qd5 {[%emt 0:02:45]} a5 {[%emt 0:03:34]} 22. Ne1 {[%emt 0:04:02]} Ne6 {[%emt 0:09:07]} 23. g3 {[%emt 0:01:37]} Qb6 {[%emt 0:04:26]} 24. a4 {[%emt 0:07:34]} bxa4 {[%emt 0:04:29]} 25. Nd3 {[%emt 0:01:35]} Nc5 {[%emt 0:06:57]} 26. Rdb1 {[%emt 0:00:14]} Qb7 {[%emt 0:06:02]} 27. Qxb7 {[%emt 0:03:29]} Rxb7 {[%emt 0:00:26]} 28. Nxc5 {[%emt 0:00:47]} dxc5 {[%emt 0:00:01]} 29. Rxa4 {[%emt 0:01:55]} Rd2 {[%emt 0:00:42]} 30. Bc4 {[%emt 0:00:46]} Rbxb2 {[%emt 0:00:54]} 31. Rxb2 {[%emt 0:00:18]} Rxb2 {[%emt 0:00:02]} 32. Rxa5 {[%emt 0:00:06]} Rb7 {[%emt 0:02:10]} 33. Bd5 {[%emt 0:02:33]} Rc7 {[%emt 0:00:43]} 34. Ra8+ {[%emt 0:00:52]} Bf8 {[%emt 0:00:02]} 35. f4 {[%emt 0:01:37]} exf4 {[%emt 0:06:35]} 36. gxf4 {[%emt 0:00:03]} g6 {[%emt 0:00:27]} 37. Kg2 {[%emt 0:01:20]} Kg7 {[%emt 0:00:40]} 38. c4 {[%emt 0:01:05]} Be7 {[%emt 0:00:49]} 39. Kg3 {[%emt 0:00:12]} g5 {[%emt 0:03:11]} 40. f5 {[%emt 0:00:00]} Bd6+ {[%emt 0:00:00]} 41. Kg4 {[%emt 0:04:18]} Bxh2 {[%emt 0:11:51]} 42. Kxg5 {[%emt 0:02:18]} h6+ {[%emt 0:02:36]} 43. Kh5 {[%emt 0:01:06]} Re7 {[%emt 0:09:43]} 44. Ra5 {[%emt 0:13:45]} Bd6 {[%emt 0:01:32]} 45. Kg4 {[%emt 0:00:42]} Kf6 {[%emt 0:01:15]} 46. Ra6 {[%emt 0:00:49]} Ke5 {[%emt 0:00:47]} 47. Kh5 {[%emt 0:00:33]} Rd7 {[%emt 0:02:35]} 48. Kxh6 {[%emt 0:00:58]} Bf8+ {[%emt 0:00:42]} 49. Kh7 {[%emt 0:04:10]} f6+ {[%emt 0:00:08]} 50. Kg8 {[%emt 0:01:15]} Bd6 {[%emt 0:00:07]} 51. Ra8 {[%emt 0:03:49]} (51. Be6 $1 $16 {[%cal Re6d7]} Rb7 52. Bf7) 51... Re7 {[%emt 0:00:47]} 52. Ra6 {[%emt 0:00:51]} (52. Rf8 $11) 52... Rd7 $16 {[%emt 0:00:23]} 53. Be6 $1 {[%emt 0:00:05]} Rb7 {[%emt 0:04:14] [#]} 54. Bf7 $1 {[%emt 0:00:13]} Rd7 {[%emt 0:02:42] [#]} 55. Kg7 $1 {[%emt 0:02:03]} Kxe4 {[%emt 0:00:30]} 56. Kxf6 {[%emt 0:00:45]} Be5+ {[%emt 0:00:00]} 57. Kg6 {[%emt 0:01:19]} Rd6+ $2 {[%emt 0:01:37][%mdl 8192]} (57... Rd3 $14) 58. Rxd6 {[%emt 0:00:03]} Bxd6 {[%emt 0:00:01]} 59. Kf6 {[%emt 0:00:29]} Kf4 {[%emt 0:00:43]} 60. Bd5 {[%emt 0:00:38]} Bf8 {[%emt 0:00:44]} 61. Kf7 {[%emt 0:00:08]} Bd6 {[%emt 0:00:16]} 62. Kf6 {[%emt 0:01:19]} Bf8 $1 {[%emt 0:00:21]} 63. Kg6 {[%emt 0:00:18]} Ke5 {[%emt 0:00:49]} 64. f6 {[%emt 0:00:09]} Kd6 {[%emt 0:00:12]} 65. Kf7 {[%emt 0:00:05]} Bh6 {[%emt 0:00:05]} 66. Ke8 {[%emt 0:00:03]} 1-0

[Event "Budapest Chess Festival 2024"]
[Site "Budapest"]
[Date "2024.05.25"]
[Round "3.15"]
[White "Moksh Amit Doshi"]
[Black "Antal, Gergely"]
[Result "1-0"]
[ECO "D37"]
[WhiteElo "2359"]
[BlackElo "2586"]
[Annotator "RC"]
[PlyCount "113"]
[EventDate "2024.05.20"]
[EventType "swiss"]
[EventCountry "HUN"]
[SourceTitle "playchess.com"]
[Source "ChessBase"]
[SourceQuality "1"]
[TimeControl "40/5400+30:1800+30"]

1. d4 {[%emt 0:00:41]} Nf6 {[%emt 0:00:40]} 2. c4 {[%emt 0:00:09]} e6 {[%emt 0:00:10]} 3. Nf3 {[%emt 0:01:19]} d5 {[%emt 0:00:13]} 4. Nc3 {[%emt 0:00:39]} dxc4 {[%emt 0:00:31]} 5. e4 {[%emt 0:00:23]} b5 {[%emt 0:00:11]} 6. e5 {[%emt 0:01:21]} Nd5 {[%emt 0:00:06]} 7. Nxb5 {[%emt 0:00:10]} Nb6 {[%emt 0:00:07]} 8. Be2 {[%emt 0:01:30]} Nc6 {[%emt 0:00:30]} 9. O-O {[%emt 0:00:31]} Be7 {[%emt 0:00:13]} 10. Be3 {[%emt 0:02:59]} O-O {[%emt 0:00:19]} 11. Nc3 {[%emt 0:00:41]} Rb8 {[%emt 0:03:09]} 12. b3 {[%emt 0:01:19]} cxb3 {[%emt 0:00:10]} 13. axb3 {[%emt 0:00:09]} Bb7 {[%emt 0:01:56]} 14. Qb1 {[%emt 0:01:28]} Nb4 {[%emt 0:23:39]} 15. Ne4 {[%emt 0:03:31]} h6 {[%emt 0:07:28]} 16. Rc1 {[%emt 0:05:55]} N6d5 {[%emt 0:16:05]} 17. Bd2 {[%emt 0:04:00]} Nb6 {[%emt 0:02:55]} 18. Rxa7 {[%emt 0:05:34]} N6d5 {[%emt 0:08:59]} 19. Ng3 {[%emt 0:17:05]} Bc6 {[%emt 0:05:17]} 20. Qe4 {[%emt 0:08:40]} Ra8 {[%emt 0:20:07]} 21. Rxa8 {[%emt 0:02:28]} Bxa8 {[%emt 0:00:02]} 22. Qg4 {[%emt 0:02:45]} Kh7 {[%emt 0:00:11]} 23. Nh5 {[%emt 0:07:00]} Rg8 {[%emt 0:00:19]} 24. h4 {[%emt 0:03:36]} Qd7 {[%emt 0:04:42]} 25. Qg3 {[%emt 0:08:29]} f5 {[%emt 0:00:54]} 26. Bc4 {[%emt 0:10:36]} Qe8 {[%emt 0:01:59]} 27. Bxb4 {[%emt 0:02:13]} Bxb4 {[%emt 0:00:30]} 28. Bxd5 {[%emt 0:00:51]} Bxd5 {[%emt 0:00:46]} 29. Nf4 {[%emt 0:00:06]} Bxf3 {[%emt 0:00:49]} 30. Qxf3 {[%emt 0:00:13]} Bd2 {[%emt 0:00:34]} 31. Rxc7 {[%emt 0:00:32]} Bxf4 {[%emt 0:00:11]} 32. Qxf4 {[%emt 0:00:05]} Qb8 {[%emt 0:00:09]} 33. Rc3 {[%emt 0:02:37]} Rd8 {[%emt 0:00:31]} 34. Rd3 {[%emt 0:01:42]} Qb4 {[%emt 0:00:47]} 35. h5 {[%emt 0:01:27]} Qe1+ {[%emt 0:00:35]} 36. Kh2 {[%emt 0:00:06]} Qe2 {[%emt 0:00:09]} 37. Qf3 {[%emt 0:00:20]} Qxf3 {[%emt 0:00:23]} 38. gxf3 {[%emt 0:00:09]} g6 {[%emt 0:01:16]} 39. hxg6+ {[%emt 0:02:20]} Kxg6 {[%emt 0:00:01]} 40. f4 {[%emt 0:00:00]} Kf7 {[%emt 0:00:00]} 41. b4 {[%emt 0:06:59]} Rd5 {[%emt 0:05:33]} 42. Kg3 {[%emt 0:06:36]} Ke7 {[%emt 0:00:21]} 43. Kh4 {[%emt 0:02:29]} Rb5 {[%emt 0:00:24]} 44. Kh5 {[%emt 0:01:50]} Rxb4 {[%emt 0:00:12]} 45. Kxh6 {[%emt 0:01:21]} Ra4 {[%emt 0:13:45]} 46. Kg6 {[%emt 0:05:52]} Ra8 {[%emt 0:00:29]} 47. d5 {[%emt 0:00:34]} Rg8+ {[%emt 0:00:38]} 48. Kh7 {[%emt 0:00:08]} Rg4 {[%emt 0:06:41]} 49. d6+ {[%emt 0:00:19]} Kd7 {[%emt 0:00:23]} 50. Rd4 {[%emt 0:00:14]} Rg2 {[%emt 0:00:07]} 51. Rc4 {[%emt 0:00:24]} Kd8 {[%emt 0:00:30]} 52. Ra4 {[%emt 0:01:38]} Rxf2 {[%emt 0:00:31]} 53. Kg6 {[%emt 0:00:24]} Rh2 {[%emt 0:00:25]} 54. Kf7 {[%emt 0:00:21]} Rh6 {[%emt 0:00:48]} 55. Ra8+ {[%emt 0:00:06]} Kd7 {[%emt 0:00:04]} 56. Ra7+ {[%emt 0:00:05]} Kd8 {[%emt 0:00:05]} 57. Re7 {[%emt 0:00:24]} 1-0